[Event "Late-Titled-Tuesday-Blitz-May-28-2024"]
[Site "Chess.com"]
[Date "2024.05.28"]
[Round "10"]
[White "SaiHanThiha"]
[Black "MusicCityMaster"]
[Result "1/2-1/2"]
[WhiteElo "2522"]
[BlackElo "2402"]
[TimeControl "180+1"]
[EndTime "15:56:54 PDT"]
[Termination "Game drawn - insufficient material"]

1. Nf3 {[%clk 0:03:00.9]} 1... c5 {[%clk 0:02:58.6]} 2. g3 {[%clk 0:03:01]} 2...
b6 {[%clk 0:02:58.7]} 3. Bg2 {[%clk 0:03:00.9]} 3... Bb7 {[%clk 0:02:59.4]} 4.
c4 {[%clk 0:03:01.1]} 4... Nf6 {[%clk 0:02:58.2]} 5. O-O {[%clk 0:03:01.5]} 5...
e6 {[%clk 0:02:58.7]} 6. b3 {[%clk 0:03:01]} 6... Be7 {[%clk 0:02:57.5]} 7. Bb2
{[%clk 0:03:01.5]} 7... O-O {[%clk 0:02:58.2]} 8. d4 {[%clk 0:03:00.8]} 8...
cxd4 {[%clk 0:02:58.1]} 9. Qxd4 {[%clk 0:03:01.7]} 9... d6 {[%clk 0:02:53.8]}
10. Nc3 {[%clk 0:03:00.8]} 10... a6 {[%clk 0:02:51]} 11. e4 {[%clk 0:03:00.5]}
11... Nbd7 {[%clk 0:02:50.8]} 12. Rac1 {[%clk 0:02:57.3]} 12... Qc7 {[%clk
0:02:50.8]} 13. Rfe1 {[%clk 0:02:56.8]} 13... Rfe8 {[%clk 0:02:49.7]} 14. Qe3
{[%clk 0:02:56.1]} 14... Ng4 {[%clk 0:02:40.6]} 15. Qe2 {[%clk 0:02:55.9]} 15...
Bf6 {[%clk 0:02:35.8]} 16. Kh1 {[%clk 0:02:38.2]} 16... Qc5 {[%clk 0:02:25.2]}
17. Rf1 {[%clk 0:02:34.1]} 17... Qh5 {[%clk 0:02:19.7]} 18. h3 {[%clk
0:02:25.5]} 18... Nge5 {[%clk 0:02:15.1]} 19. Nxe5 {[%clk 0:02:23.4]} 19... Qxe2
{[%clk 0:02:15.8]} 20. Nxe2 {[%clk 0:02:23.9]} 20... Nxe5 {[%clk 0:01:57.7]} 21.
Rcd1 {[%clk 0:02:20.8]} 21... Red8 {[%clk 0:01:55.6]} 22. f4 {[%clk 0:01:59.4]}
22... Nc6 {[%clk 0:01:55.1]} 23. Bxf6 {[%clk 0:01:50.8]} 23... gxf6 {[%clk
0:01:54.5]} 24. Rd2 {[%clk 0:01:51.1]} 24... Kf8 {[%clk 0:01:46.1]} 25. Rfd1
{[%clk 0:01:48.3]} 25... Ke7 {[%clk 0:01:46.4]} 26. Kg1 {[%clk 0:01:48.6]} 26...
e5 {[%clk 0:01:29.8]} 27. Kf2 {[%clk 0:01:40.4]} 27... h6 {[%clk 0:01:22]} 28.
Ke3 {[%clk 0:01:38.7]} 28... Rd7 {[%clk 0:01:17.8]} 29. h4 {[%clk 0:01:37.2]}
29... Rg8 {[%clk 0:01:14]} 30. Kf2 {[%clk 0:01:27.5]} 30... Rdd8 {[%clk
0:01:08.7]} 31. Bf3 {[%clk 0:01:23.7]} 31... b5 {[%clk 0:00:52.9]} 32. cxb5
{[%clk 0:01:06.2]} 32... axb5 {[%clk 0:00:53.8]} 33. Rc1 {[%clk 0:01:06.3]}
33... b4 {[%clk 0:00:48.3]} 34. Rdc2 {[%clk 0:01:05.1]} 34... Rc8 {[%clk
0:00:47.7]} 35. Ke3 {[%clk 0:00:58.7]} 35... Na5 {[%clk 0:00:43.8]} 36. Rc7+
{[%clk 0:00:57.5]} 36... Rxc7 {[%clk 0:00:35.4]} 37. Rxc7+ {[%clk 0:00:58.4]}
37... Kf8 {[%clk 0:00:34.7]} 38. Bh5 {[%clk 0:00:56.7]} 38... Rg7 {[%clk
0:00:30.2]} 39. Rd7 {[%clk 0:00:44.9]} 39... Ke8 {[%clk 0:00:25.9]} 40. Rxd6
{[%clk 0:00:44.8]} 40... Ke7 {[%clk 0:00:26.5]} 41. Rb6 {[%clk 0:00:40.9]} 41...
Rg8 {[%clk 0:00:26.6]} 42. Rb5 {[%clk 0:00:38.4]} 42... Ra8 {[%clk 0:00:25.8]}
43. fxe5 {[%clk 0:00:38.3]} 43... fxe5 {[%clk 0:00:18.4]} 44. Rxe5+ {[%clk
0:00:38.7]} 44... Kd6 {[%clk 0:00:16.6]} 45. Rf5 {[%clk 0:00:35.5]} 45... Nc6
{[%clk 0:00:16.1]} 46. Rf6+ {[%clk 0:00:26.3]} 46... Kc5 {[%clk 0:00:13.8]} 47.
Rxf7 {[%clk 0:00:24.3]} 47... Bc8 {[%clk 0:00:14.3]} 48. Nf4 {[%clk 0:00:14]}
48... Rxa2 {[%clk 0:00:13.3]} 49. Nd3+ {[%clk 0:00:13.1]} 49... Kb6 {[%clk
0:00:13.8]} 50. Rf6 {[%clk 0:00:12.3]} 50... Kb5 {[%clk 0:00:09.3]} 51. Be8
{[%clk 0:00:12.2]} 51... Bb7 {[%clk 0:00:08.5]} 52. Ne5 {[%clk 0:00:10.2]} 52...
Rb2 {[%clk 0:00:06.3]} 53. Nxc6 {[%clk 0:00:10.5]} 53... Rxb3+ {[%clk
0:00:06.9]} 54. Kf4 {[%clk 0:00:11.2]} 54... Bxc6 {[%clk 0:00:06.7]} 55. Rxc6
{[%clk 0:00:09.6]} 55... Ka5 {[%clk 0:00:06.9]} 56. Rxh6 {[%clk 0:00:07]} 56...
Rb1 {[%clk 0:00:06]} 57. Bf7 {[%clk 0:00:06.7]} 57... Rf1+ {[%clk 0:00:05.4]}
58. Ke5 {[%clk 0:00:06.6]} 58... Rxf7 {[%clk 0:00:06.3]} 59. Rh8 {[%clk
0:00:06.2]} 59... Rg7 {[%clk 0:00:06.5]} 60. h5 {[%clk 0:00:03.8]} 60... Rxg3
{[%clk 0:00:06]} 61. h6 {[%clk 0:00:04.4]} 61... b3 {[%clk 0:00:06.2]} 62. Kf6
{[%clk 0:00:02.7]} 62... Rf3+ {[%clk 0:00:05.3]} 63. Kg7 {[%clk 0:00:02.6]}
63... Rg3+ {[%clk 0:00:05.9]} 64. Kf7 {[%clk 0:00:03.3]} 64... Rf3+ {[%clk
0:00:06.4]} 65. Ke7 {[%clk 0:00:04]} 65... Re3 {[%clk 0:00:06.4]} 66. Rb8 {[%clk
0:00:03.8]} 66... Rxe4+ {[%clk 0:00:06.2]} 67. Kf6 {[%clk 0:00:04.2]} 67... Rh4
{[%clk 0:00:06]} 68. Kg5 {[%clk 0:00:04]} 68... Rh3 {[%clk 0:00:03.2]} 69. Kg6
{[%clk 0:00:04.5]} 69... Ka4 {[%clk 0:00:03.7]} 70. h7 {[%clk 0:00:05.1]} 70...
Ka3 {[%clk 0:00:04.1]} 71. Kg7 {[%clk 0:00:04.8]} 71... Ka2 {[%clk 0:00:04]} 72.
h8=Q {[%clk 0:00:05.1]} 72... Rxh8 {[%clk 0:00:04]} 73. Kxh8 {[%clk 0:00:06]}
73... b2 {[%clk 0:00:04.8]} 74. Ra8+ {[%clk 0:00:06.4]} 74... Kb3 {[%clk
0:00:04.7]} 75. Rb8+ {[%clk 0:00:07.2]} 75... Kc2 {[%clk 0:00:05.5]} 76. Rc8+
{[%clk 0:00:07.3]} 76... Kd2 {[%clk 0:00:05.8]} 77. Rb8 {[%clk 0:00:08.2]} 77...
Kc1 {[%clk 0:00:06.3]} 78. Rxb2 {[%clk 0:00:08.7]} 78... Kxb2 {[%clk 0:00:06.6]}
1/2-1/2

[Event "Late-Titled-Tuesday-Blitz-May-28-2024"]
[Site "Chess.com"]
[Date "2024.05.28"]
[Round "10"]
[White "Abund"]
[Black "Msb2"]
[Result "1/2-1/2"]
[WhiteElo "2837"]
[BlackElo "3035"]
[TimeControl "180+1"]
[EndTime "15:57:08 PDT"]
[Termination "Game drawn - insufficient material"]

1. e4 {[%clk 0:03:00.9]} 1... e6 {[%clk 0:03:00.4]} 2. d4 {[%clk 0:03:00.8]}
2... d5 {[%clk 0:03:01.1]} 3. Nd2 {[%clk 0:03:01.3]} 3... c5 {[%clk 0:03:01.4]}
4. Ngf3 {[%clk 0:03:01.1]} 4... Nf6 {[%clk 0:03:02]} 5. exd5 {[%clk 0:02:58.7]}
5... Nxd5 {[%clk 0:03:02.9]} 6. dxc5 {[%clk 0:02:48]} 6... Bxc5 {[%clk
0:03:03.8]} 7. Ne4 {[%clk 0:02:48.2]} 7... Be7 {[%clk 0:03:00.1]} 8. c3 {[%clk
0:02:38.1]} 8... O-O {[%clk 0:02:59]} 9. Bd3 {[%clk 0:02:37.8]} 9... b6 {[%clk
0:02:57.1]} 10. Qe2 {[%clk 0:02:31.7]} 10... Bb7 {[%clk 0:02:56.9]} 11. O-O
{[%clk 0:02:31]} 11... Nd7 {[%clk 0:02:56.5]} 12. Rd1 {[%clk 0:02:26.3]} 12...
Qc7 {[%clk 0:02:55.3]} 13. Ba6 {[%clk 0:02:12.2]} 13... h6 {[%clk 0:02:33.8]}
14. Bxb7 {[%clk 0:02:03.4]} 14... Qxb7 {[%clk 0:02:34.7]} 15. c4 {[%clk
0:02:03.4]} 15... N5f6 {[%clk 0:02:33]} 16. Nc3 {[%clk 0:01:56.8]} 16... Rfd8
{[%clk 0:02:30.2]} 17. b3 {[%clk 0:01:53.7]} 17... Nf8 {[%clk 0:02:24.6]} 18.
Ne5 {[%clk 0:01:45]} 18... Rxd1+ {[%clk 0:02:15.9]} 19. Nxd1 {[%clk 0:01:45.3]}
19... Rd8 {[%clk 0:02:12.7]} 20. Bb2 {[%clk 0:01:45.2]} 20... Bc5 {[%clk
0:02:01.8]} 21. Nd3 {[%clk 0:01:20.2]} 21... Bd4 {[%clk 0:02:00]} 22. Bxd4
{[%clk 0:01:16.2]} 22... Rxd4 {[%clk 0:02:00.9]} 23. Ne3 {[%clk 0:01:15.8]}
23... Ng6 {[%clk 0:01:59.1]} 24. Rd1 {[%clk 0:01:08.9]} 24... Qd7 {[%clk
0:01:57.7]} 25. Ne1 {[%clk 0:00:57.9]} 25... Ne4 {[%clk 0:01:13.6]} 26. Qc2
{[%clk 0:00:37.5]} 26... Nd2 {[%clk 0:01:10]} 27. h3 {[%clk 0:00:27.1]} 27...
Nf4 {[%clk 0:01:09.8]} 28. Kh1 {[%clk 0:00:21.3]} 28... h5 {[%clk 0:00:57]} 29.
Qb2 {[%clk 0:00:19.9]} 29... e5 {[%clk 0:00:50.9]} 30. N3c2 {[%clk 0:00:19.6]}
30... Re4 {[%clk 0:00:31]} 31. Nf3 {[%clk 0:00:18.3]} 31... Re2 {[%clk
0:00:18.6]} 32. Qc3 {[%clk 0:00:18.3]} 32... Ne4 {[%clk 0:00:09]} 33. Rxd7
{[%clk 0:00:08.3]} 33... Nxc3 {[%clk 0:00:09.7]} 34. Ne3 {[%clk 0:00:07.3]}
34... f6 {[%clk 0:00:08.9]} 35. Nf5 {[%clk 0:00:05.9]} 35... Rxf2 {[%clk
0:00:04.4]} 36. Rxg7+ {[%clk 0:00:03.7]} 36... Kf8 {[%clk 0:00:05]} 37. N3h4
{[%clk 0:00:03.6]} 37... Ne4 {[%clk 0:00:03.5]} 38. Kh2 {[%clk 0:00:02.7]} 38...
Rxa2 {[%clk 0:00:03.5]} 39. Rh7 {[%clk 0:00:02]} 39... a5 {[%clk 0:00:03.6]} 40.
Rb7 {[%clk 0:00:01]} 40... Rb2 {[%clk 0:00:03.6]} 41. Rxb6 {[%clk 0:00:01.4]}
41... a4 {[%clk 0:00:04.1]} 42. b4 {[%clk 0:00:01.1]} 42... a3 {[%clk
0:00:04.4]} 43. Ra6 {[%clk 0:00:01.7]} 43... a2 {[%clk 0:00:04.9]} 44. c5 {[%clk
0:00:01.8]} 44... Nf2 {[%clk 0:00:02.2]} 45. c6 {[%clk 0:00:01.7]} 45... Rb1
{[%clk 0:00:02.1]} 46. Rxa2 {[%clk 0:00:01]} 46... Rh1+ {[%clk 0:00:03]} 47. Kg3
{[%clk 0:00:01.5]} 47... Ne4+ {[%clk 0:00:03.9]} 48. Kf3 {[%clk 0:00:02.1]}
48... Ng5+ {[%clk 0:00:04.8]} 49. Ke3 {[%clk 0:00:02.5]} 49... Rc1 {[%clk
0:00:05.7]} 50. b5 {[%clk 0:00:02.2]} 50... Nd5+ {[%clk 0:00:05.8]} 51. Kd3
{[%clk 0:00:02.1]} 51... Rc3+ {[%clk 0:00:05.3]} 52. Kd2 {[%clk 0:00:02.4]}
52... Rc5 {[%clk 0:00:06.2]} 53. Rb2 {[%clk 0:00:02.4]} 53... Nb6 {[%clk
0:00:06.3]} 54. Ke2 {[%clk 0:00:02]} 54... Ne6 {[%clk 0:00:05.2]} 55. Ne3 {[%clk
0:00:02.2]} 55... Nd4+ {[%clk 0:00:05.5]} 56. Kf2 {[%clk 0:00:02.7]} 56... Nxb5
{[%clk 0:00:06.4]} 57. Nhf5 {[%clk 0:00:02.7]} 57... Na4 {[%clk 0:00:06.7]} 58.
Ra2 {[%clk 0:00:02.4]} 58... Nac3 {[%clk 0:00:05.9]} 59. Ra8+ {[%clk 0:00:02.3]}
59... Kf7 {[%clk 0:00:06.6]} 60. Nh6+ {[%clk 0:00:02.1]} 60... Kg6 {[%clk
0:00:06.1]} 61. Nef5 {[%clk 0:00:01.9]} 61... h4 {[%clk 0:00:02.4]} 62. Rg8+
{[%clk 0:00:01.5]} 62... Kh5 {[%clk 0:00:02.9]} 63. Nf7 {[%clk 0:00:01.8]} 63...
Rxc6 {[%clk 0:00:01.8]} 64. Ng7+ {[%clk 0:00:02.3]} 64... Kg6 {[%clk 0:00:02.2]}
65. Nd8 {[%clk 0:00:02]} 65... Kh7 {[%clk 0:00:02.1]} 66. Nxc6 {[%clk
0:00:01.8]} 66... Kxg8 {[%clk 0:00:02.7]} 67. Nh5 {[%clk 0:00:02.3]} 67... Kf7
{[%clk 0:00:02.7]} 68. g3 {[%clk 0:00:02.7]} 68... Ne4+ {[%clk 0:00:02.4]} 69.
Kf3 {[%clk 0:00:02.8]} 69... Nxg3 {[%clk 0:00:03.3]} 70. Nxg3 {[%clk 0:00:03.2]}
70... hxg3 {[%clk 0:00:04.2]} 71. Kxg3 {[%clk 0:00:03.8]} 71... Nd6 {[%clk
0:00:05]} 72. Kf3 {[%clk 0:00:03.8]} 72... Ke6 {[%clk 0:00:05.1]} 73. h4 {[%clk
0:00:04.2]} 73... Nf5 {[%clk 0:00:05.6]} 74. Kg4 {[%clk 0:00:04.3]} 74... Ne7
{[%clk 0:00:05.2]} 75. Nb4 {[%clk 0:00:04.1]} 75... Kf7 {[%clk 0:00:05.7]} 76.
Nd3 {[%clk 0:00:03.6]} 76... Kg6 {[%clk 0:00:05.8]} 77. Nf2 {[%clk 0:00:03.5]}
77... f5+ {[%clk 0:00:06]} 78. Kg3 {[%clk 0:00:03.8]} 78... Kh5 {[%clk
0:00:06.4]} 79. Nd3 {[%clk 0:00:04]} 79... Ng6 {[%clk 0:00:07.1]} 80. Nxe5
{[%clk 0:00:02.3]} 80... Nxe5 {[%clk 0:00:02.6]} 81. Kf4 {[%clk 0:00:03.1]}
81... Kxh4 {[%clk 0:00:02.1]} 82. Kxf5 {[%clk 0:00:03.3]} 1/2-1/2

[Event "Late-Titled-Tuesday-Blitz-May-28-2024"]
[Site "Chess.com"]
[Date "2024.05.28"]
[Round "10"]
[White "emeli_chess"]
[Black "rdarruda"]
[Result "1/2-1/2"]
[WhiteElo "2421"]
[BlackElo "2542"]
[TimeControl "180+1"]
[EndTime "15:57:28 PDT"]
[Termination "Game drawn - timeout vs insufficient material"]

1. d4 {[%clk 0:02:58.4]} 1... Nf6 {[%clk 0:01:23.6]} 2. c4 {[%clk 0:02:56.4]}
2... e5 {[%clk 0:01:22.6]} 3. dxe5 {[%clk 0:02:56]} 3... Ne4 {[%clk 0:01:22.9]}
4. Nf3 {[%clk 0:02:52.9]} 4... Nc6 {[%clk 0:01:22.9]} 5. e3 {[%clk 0:02:51.9]}
5... d6 {[%clk 0:01:22.7]} 6. Be2 {[%clk 0:02:46]} 6... dxe5 {[%clk 0:01:22.4]}
7. Qxd8+ {[%clk 0:02:45.2]} 7... Kxd8 {[%clk 0:01:23.3]} 8. O-O {[%clk
0:02:44.3]} 8... f6 {[%clk 0:01:23.1]} 9. Rd1+ {[%clk 0:02:41.5]} 9... Ke8
{[%clk 0:01:22.4]} 10. Nfd2 {[%clk 0:02:31.9]} 10... Nc5 {[%clk 0:01:21.8]} 11.
Nc3 {[%clk 0:02:30.9]} 11... Kf7 {[%clk 0:01:19.5]} 12. Nd5 {[%clk 0:02:29.7]}
12... Ne6 {[%clk 0:01:17]} 13. a3 {[%clk 0:02:23.4]} 13... a5 {[%clk 0:01:16.2]}
14. b3 {[%clk 0:02:19.7]} 14... Bd7 {[%clk 0:01:14.7]} 15. Ne4 {[%clk
0:02:04.3]} 15... Be8 {[%clk 0:01:08.7]} 16. Bd2 {[%clk 0:01:57.9]} 16... h6
{[%clk 0:01:03.3]} 17. Bh5+ {[%clk 0:01:47.5]} 17... g6 {[%clk 0:01:02.6]} 18.
Be2 {[%clk 0:01:47.5]} 18... Bg7 {[%clk 0:01:01.1]} 19. b4 {[%clk 0:01:42.4]}
19... f5 {[%clk 0:00:59.9]} 20. Nec3 {[%clk 0:01:41.6]} 20... e4 {[%clk
0:00:54.5]} 21. c5 {[%clk 0:01:26.4]} 21... Ne5 {[%clk 0:00:53.9]} 22. Rab1
{[%clk 0:01:18.4]} 22... Bd7 {[%clk 0:00:49.2]} 23. Be1 {[%clk 0:01:16.5]} 23...
axb4 {[%clk 0:00:47.5]} 24. axb4 {[%clk 0:01:16.2]} 24... Rhd8 {[%clk
0:00:47.3]} 25. Nb5 {[%clk 0:01:09]} 25... Bxb5 {[%clk 0:00:45.3]} 26. Bxb5
{[%clk 0:01:07.7]} 26... c6 {[%clk 0:00:45.3]} 27. Nb6 {[%clk 0:01:07.6]} 27...
cxb5 {[%clk 0:00:44.7]} 28. Nxa8 {[%clk 0:01:06.6]} 28... Rxa8 {[%clk
0:00:45.6]} 29. Bc3 {[%clk 0:01:04.8]} 29... Nf8 {[%clk 0:00:35.7]} 30. Ra1
{[%clk 0:01:00.2]} 30... Rb8 {[%clk 0:00:31.9]} 31. Kf1 {[%clk 0:00:57.9]} 31...
Nc6 {[%clk 0:00:31.6]} 32. Bxg7 {[%clk 0:00:51.2]} 32... Kxg7 {[%clk 0:00:32.5]}
33. Rd6 {[%clk 0:00:45.7]} 33... Nxb4 {[%clk 0:00:32.1]} 34. Rb6 {[%clk
0:00:45.7]} 34... Nc6 {[%clk 0:00:22.1]} 35. Rxb5 {[%clk 0:00:43.9]} 35... Nd7
{[%clk 0:00:22.7]} 36. Rab1 {[%clk 0:00:42.2]} 36... Nd8 {[%clk 0:00:22]} 37. c6
{[%clk 0:00:40.1]} 37... Nxc6 {[%clk 0:00:21.7]} 38. Rxb7 {[%clk 0:00:40]} 38...
Rxb7 {[%clk 0:00:22.6]} 39. Rxb7 {[%clk 0:00:39.9]} 39... Ne5 {[%clk 0:00:22.6]}
40. f4 {[%clk 0:00:37.9]} 40... exf3 {[%clk 0:00:22]} 41. gxf3 {[%clk
0:00:38.2]} 41... Kf8 {[%clk 0:00:19.9]} 42. f4 {[%clk 0:00:38.3]} 42... Nc5
{[%clk 0:00:20.1]} 43. Rb8+ {[%clk 0:00:37.3]} 43... Ke7 {[%clk 0:00:19]} 44.
fxe5 {[%clk 0:00:37.8]} 44... Nd3 {[%clk 0:00:19.8]} 45. Rb7+ {[%clk 0:00:33.8]}
45... Ke6 {[%clk 0:00:18.6]} 46. Rb6+ {[%clk 0:00:34]} 46... Kf7 {[%clk
0:00:19.1]} 47. Rf6+ {[%clk 0:00:29.5]} 47... Kg7 {[%clk 0:00:19]} 48. Re6
{[%clk 0:00:28.1]} 48... Kf7 {[%clk 0:00:19.2]} 49. Rf6+ {[%clk 0:00:27.6]}
49... Kg7 {[%clk 0:00:19.3]} 50. Ra6 {[%clk 0:00:20.3]} 50... Nxe5 {[%clk
0:00:19.4]} 51. h3 {[%clk 0:00:20.4]} 51... h5 {[%clk 0:00:18.5]} 52. Kf2 {[%clk
0:00:20.3]} 52... Kh6 {[%clk 0:00:18.4]} 53. Kg3 {[%clk 0:00:18.6]} 53... Nd3
{[%clk 0:00:17.9]} 54. Ra5 {[%clk 0:00:16.4]} 54... Nb4 {[%clk 0:00:15.3]} 55.
Kf4 {[%clk 0:00:15.2]} 55... Nd3+ {[%clk 0:00:15.2]} 56. Kf3 {[%clk 0:00:14.2]}
56... Nb4 {[%clk 0:00:15.5]} 57. Ra4 {[%clk 0:00:12.4]} 57... Nc6 {[%clk
0:00:15.4]} 58. Ra6 {[%clk 0:00:10.1]} 58... Ne5+ {[%clk 0:00:14.4]} 59. Kf4
{[%clk 0:00:09.7]} 59... Nd3+ {[%clk 0:00:14.6]} 60. Kf3 {[%clk 0:00:09.8]}
60... Ne5+ {[%clk 0:00:15.2]} 61. Kf4 {[%clk 0:00:08.6]} 61... Nd3+ {[%clk
0:00:15.4]} 62. Kg3 {[%clk 0:00:08.6]} 62... Ne5 {[%clk 0:00:15.7]} 63. h4
{[%clk 0:00:08.1]} 63... Nd3 {[%clk 0:00:15.3]} 64. Kf3 {[%clk 0:00:07.9]} 64...
Ne5+ {[%clk 0:00:15.2]} 65. Kf4 {[%clk 0:00:08.2]} 65... Nd3+ {[%clk 0:00:15.4]}
66. Kg3 {[%clk 0:00:08.3]} 66... Ne5 {[%clk 0:00:15.6]} 67. Ra7 {[%clk
0:00:08.4]} 67... Nd3 {[%clk 0:00:12]} 68. Rd7 {[%clk 0:00:06.7]} 68... Ne5
{[%clk 0:00:11.6]} 69. Rd5 {[%clk 0:00:06.9]} 69... Nc4 {[%clk 0:00:10.3]} 70.
Kf4 {[%clk 0:00:06.7]} 70... Nb6 {[%clk 0:00:09.8]} 71. Rd6 {[%clk 0:00:06.4]}
71... Nc4 {[%clk 0:00:09.8]} 72. Ra6 {[%clk 0:00:06.2]} 72... Nd2 {[%clk
0:00:09.1]} 73. Kg3 {[%clk 0:00:04.8]} 73... Ne4+ {[%clk 0:00:09.5]} 74. Kf4
{[%clk 0:00:05.1]} 74... Nf2 {[%clk 0:00:09.9]} 75. Kg3 {[%clk 0:00:05.1]} 75...
Ne4+ {[%clk 0:00:09.8]} 76. Kf4 {[%clk 0:00:05.3]} 76... Nf2 {[%clk 0:00:10.1]}
77. Ra8 {[%clk 0:00:04.9]} 77... Nd3+ {[%clk 0:00:09.7]} 78. Kg3 {[%clk
0:00:04.2]} 78... Nc5 {[%clk 0:00:07.9]} 79. Ra5 {[%clk 0:00:03.9]} 79... Ne4+
{[%clk 0:00:07.3]} 80. Kf4 {[%clk 0:00:03.7]} 80... Nf6 {[%clk 0:00:07.4]} 81.
Ra6 {[%clk 0:00:03.4]} 81... Ng4 {[%clk 0:00:07.4]} 82. e4 {[%clk 0:00:03.4]}
82... fxe4 {[%clk 0:00:07]} 83. Kxe4 {[%clk 0:00:03.8]} 83... Nf2+ {[%clk
0:00:06.7]} 84. Kf4 {[%clk 0:00:03.8]} 84... Ng4 {[%clk 0:00:07.2]} 85. Rb6
{[%clk 0:00:03.5]} 85... Nf2 {[%clk 0:00:07.4]} 86. Ke5 {[%clk 0:00:03.3]} 86...
Ng4+ {[%clk 0:00:07.7]} 87. Ke6 {[%clk 0:00:03.3]} 87... Ne3 {[%clk 0:00:07.1]}
88. Kf7 {[%clk 0:00:03.1]} 88... Nf5 {[%clk 0:00:07.1]} 89. Rxg6+ {[%clk
0:00:02.5]} 89... Kh7 {[%clk 0:00:07.6]} 90. Rg5 {[%clk 0:00:02.1]} 90... Nd6+
{[%clk 0:00:03.4]} 91. Ke6 {[%clk 0:00:01.1]} 91... Ne8 {[%clk 0:00:03]} 92.
Rxh5+ {[%clk 0:00:01.3]} 92... Kg6 {[%clk 0:00:03.9]} 93. Rg5+ {[%clk
0:00:01.6]} 93... Kh6 {[%clk 0:00:04.3]} 94. Kf7 {[%clk 0:00:01]} 94... Ng7
{[%clk 0:00:05.2]} 1/2-1/2

[Event "Late-Titled-Tuesday-Blitz-May-28-2024"]
[Site "Chess.com"]
[Date "2024.05.28"]
[Round "11"]
[White "Maect19"]
[Black "VirtualCoach"]
[Result "1-0"]
[WhiteElo "2299"]
[BlackElo "2189"]
[TimeControl "180+1"]
[EndTime "16:01:16 PDT"]
[Termination "Maect19 won by resignation"]

1. Nf3 {[%clk 0:03:00.9]} 1... c5 {[%clk 0:02:59]} 2. c4 {[%clk 0:03:00.2]} 2...
Nc6 {[%clk 0:02:58.4]} 3. Nc3 {[%clk 0:03:00.3]} 3... Nf6 {[%clk 0:02:58.3]} 4.
g3 {[%clk 0:03:00.5]} 4... d5 {[%clk 0:02:57.8]} 5. cxd5 {[%clk 0:02:59.6]} 5...
Nxd5 {[%clk 0:02:57.9]} 6. Nxd5 {[%clk 0:03:00.1]} 6... Qxd5 {[%clk 0:02:57.1]}
7. Bg2 {[%clk 0:03:00.6]} 7... g6 {[%clk 0:02:53.1]} 8. d3 {[%clk 0:03:00.5]}
8... Bg7 {[%clk 0:02:51.5]} 9. O-O {[%clk 0:03:00.1]} 9... O-O {[%clk 0:02:51]}
10. Be3 {[%clk 0:03:00.1]} 10... b6 {[%clk 0:02:43.6]} 11. Nd4 {[%clk
0:02:51.4]} 11... Qxg2+ {[%clk 0:02:29.4]} 12. Kxg2 {[%clk 0:02:50.7]} 12...
cxd4 {[%clk 0:02:29.1]} 13. Bd2 {[%clk 0:02:48.6]} 13... Bb7 {[%clk 0:02:29.1]}
14. f3 {[%clk 0:02:47.1]} 14... e5 {[%clk 0:02:24.1]} 15. Rc1 {[%clk 0:02:44.8]}
15... Rac8 {[%clk 0:02:23.2]} 16. Qa4 {[%clk 0:02:42.8]} 16... Na5 {[%clk
0:02:22]} 17. Rxc8 {[%clk 0:02:40.4]} 17... Rxc8 {[%clk 0:02:22.9]} 18. Rc1
{[%clk 0:02:40]} 18... Rd8 {[%clk 0:02:23]} 19. Rc7 {[%clk 0:02:37.6]} 19... Ba8
{[%clk 0:02:04.3]} 20. Bxa5 {[%clk 0:02:32.1]} 20... bxa5 {[%clk 0:02:02.5]} 21.
Qxa5 {[%clk 0:02:31.3]} 21... Bf6 {[%clk 0:01:57.4]} 22. Rxa7 {[%clk 0:02:26.7]}
22... Bd5 {[%clk 0:01:54.1]} 23. b4 {[%clk 0:02:20.8]} 23... Rc8 {[%clk
0:01:50.9]} 24. Qxd5 {[%clk 0:02:18]} 1-0

[Event "Late-Titled-Tuesday-Blitz-May-28-2024"]
[Site "Chess.com"]
[Date "2024.05.28"]
[Round "11"]
[White "Zorbos"]
[Black "rasmussvane"]
[Result "0-1"]
[WhiteElo "2732"]
[BlackElo "2921"]
[TimeControl "180+1"]
[EndTime "16:01:32 PDT"]
[Termination "rasmussvane won by resignation"]

1. e4 {[%clk 0:02:56.3]} 1... c6 {[%clk 0:02:59.7]} 2. Nc3 {[%clk 0:02:53.9]}
2... d5 {[%clk 0:03:00.6]} 3. Nf3 {[%clk 0:02:54.6]} 3... dxe4 {[%clk 0:03:01]}
4. Nxe4 {[%clk 0:02:55.5]} 4... Nf6 {[%clk 0:03:01.7]} 5. Qe2 {[%clk 0:02:55]}
5... Nxe4 {[%clk 0:03:02]} 6. Qxe4 {[%clk 0:02:55.9]} 6... Qa5 {[%clk
0:03:02.5]} 7. Bc4 {[%clk 0:02:53.3]} 7... Bf5 {[%clk 0:03:02.2]} 8. Qe2 {[%clk
0:02:50.9]} 8... e6 {[%clk 0:03:02.6]} 9. O-O {[%clk 0:02:47]} 9... Be7 {[%clk
0:03:02.2]} 10. d4 {[%clk 0:02:46.9]} 10... O-O {[%clk 0:03:02.4]} 11. c3 {[%clk
0:02:46.1]} 11... Re8 {[%clk 0:03:02.7]} 12. b4 {[%clk 0:02:36.2]} 12... Qc7
{[%clk 0:03:02.5]} 13. Bd2 {[%clk 0:02:22.9]} 13... Nd7 {[%clk 0:03:02.1]} 14.
Bd3 {[%clk 0:02:22.4]} 14... Bxd3 {[%clk 0:02:56.9]} 15. Qxd3 {[%clk 0:02:23.3]}
15... Rad8 {[%clk 0:02:55.8]} 16. a4 {[%clk 0:02:20.8]} 16... Bd6 {[%clk
0:02:55.2]} 17. Ng5 {[%clk 0:02:19.9]} 17... Nf6 {[%clk 0:02:54]} 18. Qh3 {[%clk
0:02:15.7]} 18... e5 {[%clk 0:02:51.5]} 19. dxe5 {[%clk 0:02:12.6]} 19... Bxe5
{[%clk 0:02:51.9]} 20. Be1 {[%clk 0:02:13.1]} 20... c5 {[%clk 0:02:39.5]} 21. b5
{[%clk 0:02:12.8]} 21... c4 {[%clk 0:02:38.4]} 22. Nf3 {[%clk 0:02:12.2]} 22...
Rd3 {[%clk 0:02:36.8]} 23. Qf5 {[%clk 0:02:09.7]} 23... g6 {[%clk 0:02:18]} 24.
Qg5 {[%clk 0:02:08.8]} 24... Ne4 {[%clk 0:02:16.6]} 25. Qh4 {[%clk 0:02:05.5]}
25... Bf6 {[%clk 0:02:14.4]} 26. Qh6 {[%clk 0:02:03]} 26... Bg7 {[%clk
0:02:08.9]} 27. Qh4 {[%clk 0:02:02.4]} 27... Nxc3 {[%clk 0:01:56.7]} 28. Bxc3
{[%clk 0:02:03.3]} 28... Rxc3 {[%clk 0:01:55.7]} 29. Rac1 {[%clk 0:02:03.5]}
29... Rxc1 {[%clk 0:01:50.4]} 30. Rxc1 {[%clk 0:02:04.4]} 0-1